[Event "46th GRE-chT Premier 2018"]
[Site "Rio Achaia"]
[Date "2018.07.12"]
[Round "4"]
[White "Georgiev, Krum"]
[Black "Rousis, Mihail"]
[Result "1/2-1/2"]
[ECO "A04"]
[WhiteElo "2330"]
[BlackElo "2048"]
[Annotator "NA"]
[PlyCount "86"]
[EventDate "2018.07.10"]
[EventType "team-tourn"]
[EventCountry "GRE"]
[SourceTitle "playchess.com"]
[Source "ChessBase"]
[SourceQuality "1"]
[TimeControl "40/5400+30:1800+30"]

1. Nf3 {[%emt 0:00:00]} c5 {[%emt 0:00:26]} 2. g3 {[%emt 0:00:00]} g6 {[%emt 0:00:14]} 3. Bg2 {[%emt 0:00:06]} Bg7 {[%emt 0:01:28]} 4. O-O {[%emt 0:00:15]} Nc6 {[%emt 0:00:39]} 5. c4 {[%emt 0:01:59]} e5 {[%emt 0:02:03]} 6. Nc3 {[%emt 0:00:29]} Nge7 {[%emt 0:00:17]} 7. Ne1 {[%emt 0:03:02]} d6 {[%emt 0:06:03]} 8. Nc2 {[%emt 0:02:52]} Be6 {[%emt 0:00:56]} 9. Ne3 {[%emt 0:10:59]} O-O {[%emt 0:01:17]} 10. d3 {[%emt 0:02:58]} Qd7 {[%emt 0:01:52]} 11. Rb1 {[%emt 0:05:37]} Bh3 {[%emt 0:05:55]} 12. Bd2 {[%emt 0:08:25]} Bxg2 {[%emt 0:02:35]} 13. Kxg2 {[%emt 0:00:54]} f5 {[%emt 0:01:03]} 14. Ned5 {[%emt 0:00:38]} Nxd5 {[%emt 0:01:11]} 15. Nxd5 {[%emt 0:00:07]} Ne7 {[%emt 0:00:25]} 16. Nxe7+ {[%emt 0:05:19]} Qxe7 {[%emt 0:00:04]} 17. e4 {[%emt 0:00:13]} Rf7 {[%emt 0:09:47]} 18. f3 {[%emt 0:01:46]} Qf8 {[%emt 0:01:16]} 19. Qc1 {[%emt 0:05:18]} h5 {[%emt 0:02:13]} 20. b4 {[%emt 0:05:43]} Kh7 {[%emt 0:08:44]} 21. a3 {[%emt 0:28:15]} b6 {[%emt 0:01:19]} 22. Bg5 {[%emt 0:03:20]} Bh6 {[%emt 0:01:11]} 23. Rb2 {[%emt 0:01:38]} Bxg5 {[%emt 0:00:36]} 24. Qxg5 {[%emt 0:00:03]} Qh6 {[%emt 0:00:11]} 25. Qxh6+ {[%emt 0:03:30]} Kxh6 {[%emt 0:00:04]} 26. a4 {[%emt 0:01:00]} Raf8 {[%emt 0:20:27]} 27. a5 {[%emt 0:03:40]} cxb4 {[%emt 0:03:00]} 28. Rxb4 {[%emt 0:01:44]} fxe4 {[%emt 0:00:30]} 29. dxe4 {[%emt 0:00:02]} bxa5 {[%emt 0:00:52]} 30. Ra4 {[%emt 0:00:32]} g5 {[%emt 0:00:56]} 31. h3 {[%emt 0:00:45]} g4 {[%emt 0:00:24]} 32. hxg4 {[%emt 0:02:32]} hxg4 {[%emt 0:00:04]} 33. Rh1+ {[%emt 0:00:29]} Kg5 {[%emt 0:00:42]} 34. f4+ {[%emt 0:00:12]} exf4 {[%emt 0:00:36]} 35. Rxa5+ {[%emt 0:00:02]} Kg6 {[%emt 0:00:45]} 36. Rh4 {[%emt 0:00:18]} fxg3 {[%emt 0:01:36]} 37. Rxg4+ {[%emt 0:00:02]} Kf6 {[%emt 0:00:36]} 38. Rf4+ {[%emt 0:01:52]} Ke6 {[%emt 0:00:11]} 39. Rxf7 {[%emt 0:00:08]} Rxf7 {[%emt 0:00:05]} 40. Kxg3 {[%emt 0:00:00]} Rc7 {[%emt 0:00:00]} 41. Kf4 {[%emt 0:00:29]} Rxc4 {[%emt 0:01:49]} 42. Rxa7 {[%emt 0:00:17]} Rc1 {[%emt 0:00:08]} 43. Ra5 {[%emt 0:00:35]} Rf1+ {[%emt 0:00:07] Ke5+ Kxe5} 1/2-1/2

[Event "46th GRE-chT Premier 2018"]
[Site "Rio Achaia"]
[Date "2018.07.12"]
[Round "4"]
[White "Markidis, Konstantinos"]
[Black "Shoker, Samy"]
[Result "1/2-1/2"]
[ECO "B06"]
[WhiteElo "2329"]
[BlackElo "2482"]
[Annotator "RC"]
[PlyCount "86"]
[EventDate "2018.07.10"]
[EventType "team-tourn"]
[EventCountry "GRE"]
[SourceTitle "playchess.com"]
[Source "ChessBase"]
[SourceQuality "1"]
[TimeControl "40/5400+30:1800+30"]

1. e4 g6 {[%emt 0:00:00]} 2. d4 {[%emt 0:00:00]} Bg7 {[%emt 0:00:00]} 3. Nf3 {[%emt 0:00:07]} d6 {[%emt 0:00:01]} 4. c3 {[%emt 0:00:42]} Nf6 {[%emt 0:00:14]} 5. Bd3 {[%emt 0:00:07]} O-O {[%emt 0:00:12]} 6. O-O {[%emt 0:00:18]} Nc6 {[%emt 0:00:35]} 7. Re1 {[%emt 0:02:26]} e5 {[%emt 0:00:29]} 8. h3 {[%emt 0:00:58]} h6 {[%emt 0:09:53]} 9. Na3 {[%emt 0:02:18]} a6 {[%emt 0:01:00]} 10. Nc2 {[%emt 0:01:40]} Nh5 {[%emt 0:00:28]} 11. Bd2 {[%emt 0:10:16]} Qf6 {[%emt 0:06:25]} 12. b4 {[%emt 0:06:57]} Re8 {[%emt 0:05:32]} 13. a4 {[%emt 0:00:40]} Nf4 {[%emt 0:07:34]} 14. Bf1 {[%emt 0:03:04]} g5 {[%emt 0:04:21]} 15. d5 {[%emt 0:34:38]} Ne7 {[%emt 0:04:39]} 16. Nh2 {[%emt 0:02:16]} Qg6 {[%emt 0:09:21]} 17. c4 {[%emt 0:03:42]} f5 {[%emt 0:03:00]} 18. f3 {[%emt 0:04:58]} h5 {[%emt 0:01:53]} 19. Ra3 {[%emt 0:02:04]} h4 {[%emt 0:03:52]} 20. Qb1 {[%emt 0:01:24]} Kh8 {[%emt 0:15:38]} 21. Ne3 {[%emt 0:00:15]} Rf8 {[%emt 0:01:40]} 22. c5 {[%emt 0:02:44]} fxe4 {[%emt 0:01:25]} 23. fxe4 {[%emt 0:00:27]} Ng8 {[%emt 0:00:08]} 24. Nhg4 {[%emt 0:01:48]} Nf6 {[%emt 0:01:30]} 25. Nxf6 Qxf6 {[%emt 0:00:54]} 26. Qd1 {[%emt 0:00:58]} Bd7 {[%emt 0:01:44]} 27. Ng4 {[%emt 0:02:07]} Qg6 {[%emt 0:00:20]} 28. Bc4 {[%emt 0:00:42]} Rad8 {[%emt 0:04:06]} 29. Rf3 {[%emt 0:02:39]} Bc8 {[%emt 0:04:35]} 30. c6 {[%emt 0:01:08]} Rf7 {[%emt 0:05:16]} 31. cxb7 {[%emt 0:00:27]} Bxb7 {[%emt 0:00:01]} 32. Ree3 {[%emt 0:00:08]} Re7 {[%emt 0:01:17]} 33. Qf1 {[%emt 0:00:39]} c6 {[%emt 0:00:13]} 34. Bxa6 {[%emt 0:03:05]} cxd5 {[%emt 0:00:24]} 35. Bxb7 {[%emt 0:00:09]} Rxb7 {[%emt 0:00:20]} 36. exd5 {[%emt 0:01:13]} Nxd5 {[%emt 0:00:24]} 37. Re1 {[%emt 0:01:09]} Nf4 {[%emt 0:01:55]} 38. Bxf4 {[%emt 0:04:34]} gxf4 {[%emt 0:00:55]} 39. b5 {[%emt 0:00:17]} Ra8 {[%emt 0:00:26]} 40. Qc4 {[%emt 0:00:00]} Qf7 {[%emt 0:00:00]} 41. Qc6 {[%emt 0:13:30]} Rxa4 {[%emt 0:23:11]} 42. Qxd6 {[%emt 0:01:34]} Rd4 {[%emt 0:00:54]} 43. Qc6 Rc4 1/2-1/2

[Event "46th GRE-chT Premier 2018"]
[Site "Rio Achaia"]
[Date "2018.07.12"]
[Round "4"]
[White "Michna, Marta"]
[Black "Radeva, Viktoria"]
[Result "1/2-1/2"]
[ECO "D04"]
[WhiteElo "2322"]
[BlackElo "2274"]
[Annotator "NA"]
[PlyCount "62"]
[EventDate "2018.07.10"]
[EventType "team-tourn"]
[EventCountry "GRE"]
[SourceTitle "playchess.com"]
[Source "ChessBase"]
[SourceQuality "1"]
[TimeControl "40/5400+30:1800+30"]

1. d4 {[%emt 0:00:00]} d5 {[%emt 0:02:06]} 2. Nf3 {[%emt 0:00:00]} Nf6 {[%emt 0:00:26]} 3. e3 {[%emt 0:00:19]} c5 {[%emt 0:00:34]} 4. Nbd2 {[%emt 0:00:14]} e6 {[%emt 0:00:27]} 5. a3 {[%emt 0:00:12]} Nc6 {[%emt 0:03:07]} 6. b3 {[%emt 0:00:31]} Be7 {[%emt 0:00:16]} 7. Bb2 {[%emt 0:00:41]} O-O {[%emt 0:00:12]} 8. Bd3 {[%emt 0:00:32]} b6 {[%emt 0:00:41]} 9. O-O {[%emt 0:00:22]} Bb7 {[%emt 0:00:28]} 10. Qe2 {[%emt 0:00:36]} Rc8 {[%emt 0:01:43]} 11. Rac1 {[%emt 0:00:21]} cxd4 {[%emt 0:03:45]} 12. exd4 {[%emt 0:00:44]} Re8 {[%emt 0:03:24]} 13. Rfe1 {[%emt 0:00:46]} h6 {[%emt 0:03:41]} 14. h3 {[%emt 0:00:33]} Qc7 {[%emt 0:02:35]} 15. Ne5 {[%emt 0:01:08]} Nxe5 {[%emt 0:00:27]} 16. dxe5 {[%emt 0:00:27]} Nd7 {[%emt 0:00:12]} 17. b4 {[%emt 0:00:25]} a5 {[%emt 0:02:15]} 18. Qg4 {[%emt 0:04:03]} Bf8 {[%emt 0:10:28]} 19. Nf3 {[%emt 0:00:10]} Qd8 {[%emt 0:01:26]} 20. Rb1 {[%emt 0:03:47]} axb4 {[%emt 0:00:42]} 21. axb4 {[%emt 0:00:03]} Ra8 {[%emt 0:00:16]} 22. Ra1 {[%emt 0:00:06]} Rxa1 {[%emt 0:00:32]} 23. Rxa1 {[%emt 0:00:04]} Qc7 {[%emt 0:00:18]} 24. Qd4 {[%emt 0:02:11]} Ra8 {[%emt 0:00:28]} 25. Rxa8 {[%emt 0:00:08]} Bxa8 {[%emt 0:00:01]} 26. Bc1 {[%emt 0:00:42]} Bb7 {[%emt 0:01:16]} 27. Be3 {[%emt 0:00:37]} Bc8 {[%emt 0:02:18]} 28. h4 {[%emt 0:02:35]} Be7 {[%emt 0:01:52]} 29. g3 {[%emt 0:00:05]} Bf8 {[%emt 0:00:08]} 30. Kg2 {[%emt 0:00:15]} Be7 {[%emt 0:00:16]} 31. Bd2 {[%emt 0:00:47]} Bf8 {[%emt 0:00:16]} 1/2-1/2

[Event "46th GRE-chT Premier 2018"]
[Site "Rio Achaia"]
[Date "2018.07.12"]
[Round "4"]
[White "Tsanas, Athanasios"]
[Black "Argiroudis, Stamatis"]
[Result "1-0"]
[ECO "E06"]
[WhiteElo "2302"]
[BlackElo "2306"]
[Annotator "NA"]
[PlyCount "43"]
[EventDate "2018.07.10"]
[EventType "team-tourn"]
[EventCountry "GRE"]
[SourceTitle "playchess.com"]
[Source "ChessBase"]
[SourceQuality "1"]
[TimeControl "40/5400+30:1800+30"]

1. d4 {[%emt 0:04:20]} Nf6 {[%emt 0:00:10]} 2. c4 {[%emt 0:00:27]} e6 {[%emt 0:01:29]} 3. g3 {[%emt 0:02:07]} d5 {[%emt 0:01:14]} 4. Nf3 {[%emt 0:00:05]} Be7 {[%emt 0:02:18]} 5. Bg2 {[%emt 0:00:05]} O-O {[%emt 0:00:07]} 6. O-O {[%emt 0:01:13]} dxc4 {[%emt 0:03:10]} 7. Qc2 {[%emt 0:01:44]} b6 {[%emt 0:01:59]} 8. Qxc4 {[%emt 0:10:48]} Bb7 {[%emt 0:01:02]} 9. Nc3 {[%emt 0:01:38]} c5 {[%emt 0:02:00]} 10. Rd1 {[%emt 0:07:26]} Nbd7 {[%emt 0:06:52]} 11. Bg5 {[%emt 0:13:12]} Qc8 {[%emt 0:13:40]} 12. Rac1 {[%emt 0:01:29]} h6 {[%emt 0:02:14]} 13. Bf4 {[%emt 0:07:23]} Nd5 {[%emt 0:14:22]} 14. dxc5 {[%emt 0:05:12]} Nxc5 {[%emt 0:04:26]} 15. b4 {[%emt 0:17:18]} Na6 {[%emt 0:05:24]} 16. Nxd5 {[%emt 0:00:32]} Bxd5 {[%emt 0:00:29]} 17. Qb5 {[%emt 0:00:28]} Qb7 {[%emt 0:21:07]} 18. e4 {[%emt 0:00:08]} Nxb4 {[%emt 0:10:27]} 19. exd5 {[%emt 0:00:10]} a6 {[%emt 0:00:27]} 20. Qe2 {[%emt 0:07:27]} Nxd5 {[%emt 0:00:42]} 21. Nd4 {[%emt 0:00:46]} Qd7 {[%emt 0:03:45]} 22. Bxd5 {[%emt 0:00:20]} 1-0

[Event "46th GRE-chT Premier 2018"]
[Site "Rio Achaia"]
[Date "2018.07.12"]
[Round "4"]
[White "Vlahos, Kiriakos"]
[Black "Lagopatis, Nikolaos"]
[Result "1/2-1/2"]
[ECO "A22"]
[WhiteElo "2293"]
[BlackElo "2100"]
[Annotator "NA"]
[PlyCount "76"]
[EventDate "2018.07.10"]
[EventType "team-tourn"]
[EventCountry "GRE"]
[SourceTitle "playchess.com"]
[Source "ChessBase"]
[SourceQuality "1"]
[TimeControl "40/5400+30:1800+30"]

1. c4 {[%emt 0:01:59]} e5 {[%emt 0:00:28]} 2. Nc3 {[%emt 0:00:26]} Nf6 {[%emt 0:00:34]} 3. Nf3 {[%emt 0:00:18]} d6 {[%emt 0:01:30]} 4. d4 {[%emt 0:00:30]} Nbd7 {[%emt 0:00:32]} 5. g3 {[%emt 0:00:17]} Be7 {[%emt 0:00:41]} 6. Bg2 {[%emt 0:00:04]} O-O {[%emt 0:00:27]} 7. O-O {[%emt 0:00:04]} c6 {[%emt 0:01:09]} 8. e4 {[%emt 0:00:06]} b5 {[%emt 0:07:11]} 9. cxb5 {[%emt 0:06:15]} cxb5 {[%emt 0:02:25]} 10. Nxb5 {[%emt 0:00:42]} Ba6 {[%emt 0:07:06]} 11. a4 {[%emt 0:04:17]} Qb6 {[%emt 0:17:05]} 12. Be3 {[%emt 0:22:42]} Ng4 {[%emt 0:07:35]} 13. Bg5 {[%emt 0:00:31]} Bxg5 {[%emt 0:03:16]} 14. Nxg5 {[%emt 0:02:17]} Ngf6 {[%emt 0:00:28]} 15. Re1 {[%emt 0:08:43]} Bxb5 {[%emt 0:05:42]} 16. axb5 {[%emt 0:00:05]} Qxb5 {[%emt 0:00:36]} 17. Ra2 {[%emt 0:06:10]} a5 {[%emt 0:03:41]} 18. Nf3 {[%emt 0:01:47]} Rfb8 {[%emt 0:01:26]} 19. Qe2 {[%emt 0:03:46]} Qb4 {[%emt 0:02:31]} 20. dxe5 {[%emt 0:00:33]} dxe5 {[%emt 0:00:31]} 21. Bh3 {[%emt 0:00:20]} a4 {[%emt 0:06:26]} 22. Bxd7 {[%emt 0:00:14]} Nxd7 {[%emt 0:00:08]} 23. Rea1 {[%emt 0:05:37]} f6 {[%emt 0:10:11]} 24. Nd2 {[%emt 0:09:30]} Rc8 {[%emt 0:04:08]} 25. Qd3 {[%emt 0:02:46]} Nb6 {[%emt 0:02:54]} 26. Nf1 {[%emt 0:04:08]} Rd8 {[%emt 0:01:28]} 27. Qe2 {[%emt 0:02:58]} Rd4 {[%emt 0:01:03]} 28. f3 {[%emt 0:03:00]} Rad8 {[%emt 0:00:33]} 29. Kh1 {[%emt 0:01:48]} Rd3 {[%emt 0:02:14]} 30. Ra3 {[%emt 0:00:12]} Qd4 {[%emt 0:00:51]} 31. Rxd3 {[%emt 0:03:36]} Qxd3 {[%emt 0:00:05]} 32. Qxd3 {[%emt 0:01:08]} Rxd3 {[%emt 0:00:05]} 33. Kg2 {[%emt 0:00:03]} Rd4 {[%emt 0:02:58]} 34. Ra2 {[%emt 0:00:23]} Rb4 {[%emt 0:03:45]} 35. Ne3 {[%emt 0:00:43]} Kf7 {[%emt 0:00:38]} 36. Kf2 {[%emt 0:00:09]} Nc4 {[%emt 0:00:37]} 37. Nxc4 {[%emt 0:01:21]} Rxc4 {[%emt 0:00:05]} 38. Ke3 {[%emt 0:00:58]} Rb4 {[%emt 0:01:18] Kd4} 1/2-1/2

[Event "46th GRE-chT Premier 2018"]
[Site "Rio Achaia"]
[Date "2018.07.12"]
[Round "4"]
[White "Botsari, Anna-Maria"]
[Black "Zawadzka, Jolanta"]
[Result "0-1"]
[ECO "D70"]
[WhiteElo "2284"]
[BlackElo "2439"]
[Annotator "NA"]
[PlyCount "88"]
[EventDate "2018.07.10"]
[EventType "team-tourn"]
[EventCountry "GRE"]
[SourceTitle "playchess.com"]
[Source "ChessBase"]
[SourceQuality "1"]
[TimeControl "40/5400+30:1800+30"]

1. d4 Nf6 {[%emt 0:03:48]} 2. c4 {[%emt 0:00:00]} g6 {[%emt 0:00:04]} 3. Nf3 {[%emt 0:00:00]} Bg7 {[%emt 0:00:08]} 4. e3 {[%emt 0:00:00]} O-O {[%emt 0:00:06]} 5. Be2 {[%emt 0:00:00]} d6 {[%emt 0:00:17]} 6. Nc3 {[%emt 0:00:00]} Nc6 {[%emt 0:00:07]} 7. d5 {[%emt 0:00:06]} Nb4 {[%emt 0:00:16]} 8. a3 {[%emt 0:00:12]} Na6 {[%emt 0:00:07]} 9. Nd4 {[%emt 0:01:10]} e5 {[%emt 0:02:05]} 10. dxe6 {[%emt 0:00:03]} fxe6 {[%emt 0:00:06]} 11. O-O {[%emt 0:00:06]} Qe7 {[%emt 0:04:17]} 12. b4 {[%emt 0:05:52]} e5 {[%emt 0:05:06]} 13. Nb3 {[%emt 0:11:56]} c6 {[%emt 0:08:06]} 14. e4 {[%emt 0:02:33]} Be6 {[%emt 0:06:18]} 15. Bg5 {[%emt 0:14:47]} Rad8 {[%emt 0:04:13]} 16. Ra2 {[%emt 0:03:46]} Qf7 {[%emt 0:04:42]} 17. Rd2 {[%emt 0:28:43]} Bxc4 {[%emt 0:09:36]} 18. Bxc4 {[%emt 0:00:50]} Qxc4 {[%emt 0:00:05]} 19. Qc2 {[%emt 0:13:00]} Rd7 {[%emt 0:08:31]} 20. Na5 {[%emt 0:00:37]} Qe6 {[%emt 0:00:29]} 21. Be3 {[%emt 0:04:39]} d5 {[%emt 0:09:40]} 22. Bxa7 {[%emt 0:03:38]} d4 {[%emt 0:00:13]} 23. Na4 {[%emt 0:01:10]} Bh6 {[%emt 0:00:55]} 24. Rdd1 {[%emt 0:01:27]} Ng4 {[%emt 0:02:11]} 25. Nb2 {[%emt 0:02:29]} Rdf7 {[%emt 0:08:11]} 26. Nd3 {[%emt 0:02:04]} Ne3 {[%emt 0:00:41]} 27. Qe2 {[%emt 0:01:36]} Nxf1 {[%emt 0:02:30]} 28. Rxf1 {[%emt 0:00:37]} Bg5 {[%emt 0:00:45]} 29. Bc5 {[%emt 0:00:35]} Re8 {[%emt 0:01:15]} 30. Qc2 {[%emt 0:00:33]} Bd8 {[%emt 0:01:11]} 31. Nc4 {[%emt 0:00:28]} Bc7 {[%emt 0:00:30]} 32. a4 {[%emt 0:00:46]} Nb8 {[%emt 0:02:00]} 33. a5 Nd7 {[%emt 0:00:26]} 34. f3 {[%emt 0:01:17]} h5 {[%emt 0:01:32]} 35. h3 {[%emt 0:00:22]} Kh7 {[%emt 0:00:25]} 36. Ra1 {[%emt 0:00:07]} Ra8 {[%emt 0:01:31]} 37. Rf1 {[%emt 0:01:04]} g5 {[%emt 0:05:56]} 38. Re1 {[%emt 0:00:12]} g4 {[%emt 0:01:33]} 39. hxg4 {[%emt 0:00:03]} hxg4 {[%emt 0:00:06]} 40. Kf2 {[%emt 0:00:00]} Qh6 {[%emt 0:00:00]} 41. Qc1 {[%emt 0:04:21]} Rxf3+ {[%emt 0:12:18]} 42. gxf3 {[%emt 0:05:51]} Qh2+ {[%emt 0:00:07]} 43. Kf1 {[%emt 0:00:02]} gxf3 {[%emt 0:00:59]} 44. Qg5 {[%emt 0:07:43]} Rg8 {[%emt 0:00:26]} 0-1

[Event "46th GRE-chT Premier 2018"]
[Site "Rio Achaia"]
[Date "2018.07.12"]
[Round "4"]
[White "Michaelides, Konstantinos"]
[Black "Tsiros, Fragkiskos Vlasios"]
[Result "1/2-1/2"]
[ECO "A41"]
[WhiteElo "2282"]
[BlackElo "2181"]
[Annotator "NA"]
[PlyCount "85"]
[EventDate "2018.07.10"]
[EventType "team-tourn"]
[EventCountry "GRE"]
[SourceTitle "playchess.com"]
[Source "ChessBase"]
[SourceQuality "1"]
[TimeControl "40/5400+30:1800+30"]

1. d4 {[%emt 0:00:00]} d6 {[%emt 0:01:00]} 2. c4 {[%emt 0:00:10]} e5 {[%emt 0:01:20]} 3. Nc3 {[%emt 0:02:21]} exd4 {[%emt 0:01:06]} 4. Qxd4 {[%emt 0:00:06]} Nc6 {[%emt 0:00:06]} 5. Qd2 {[%emt 0:03:08]} Nf6 {[%emt 0:01:04]} 6. Nf3 {[%emt 0:01:09]} g6 {[%emt 0:01:21]} 7. b3 {[%emt 0:02:06]} Bg7 {[%emt 0:00:25]} 8. Bb2 {[%emt 0:00:33]} O-O {[%emt 0:00:55]} 9. e3 {[%emt 0:01:13]} a5 {[%emt 0:04:59]} 10. Be2 {[%emt 0:02:33]} Bf5 {[%emt 0:13:07]} 11. O-O {[%emt 0:02:25]} Ne4 {[%emt 0:01:55]} 12. Nxe4 {[%emt 0:02:25]} Bxb2 {[%emt 0:00:45]} 13. Qxb2 {[%emt 0:00:21]} Bxe4 {[%emt 0:00:02]} 14. Nd2 {[%emt 0:03:41]} Bf5 {[%emt 0:02:06]} 15. Rad1 {[%emt 0:04:36]} Qe7 {[%emt 0:09:56]} 16. Bf3 {[%emt 0:04:37]} Bd3 {[%emt 0:02:38]} 17. Rfe1 {[%emt 0:01:44]} Nb4 {[%emt 0:00:53]} 18. Be2 {[%emt 0:14:43]} Qe5 {[%emt 0:11:14]} 19. Qxe5 {[%emt 0:07:47]} dxe5 {[%emt 0:00:05]} 20. Bxd3 {[%emt 0:00:55]} Nxd3 {[%emt 0:00:08]} 21. Re2 {[%emt 0:01:11]} Rfd8 {[%emt 0:03:50]} 22. Ne4 {[%emt 0:09:13]} f5 {[%emt 0:13:12]} 23. Nc3 {[%emt 0:01:33]} Nc5 {[%emt 0:03:26]} 24. Red2 {[%emt 0:04:31]} Rxd2 {[%emt 0:01:01]} 25. Rxd2 {[%emt 0:00:02]} c6 {[%emt 0:00:07]} 26. Kf1 {[%emt 0:06:12]} Kf7 {[%emt 0:01:20]} 27. Ke2 {[%emt 0:02:00]} Ke6 {[%emt 0:02:02]} 28. Kd1 {[%emt 0:02:45]} Rb8 {[%emt 0:05:55]} 29. f3 {[%emt 0:03:43]} g5 {[%emt 0:01:42]} 30. Kc2 {[%emt 0:04:21]} b5 {[%emt 0:01:53]} 31. cxb5 {[%emt 0:01:21]} cxb5 {[%emt 0:00:01]} 32. Kb2 {[%emt 0:01:04]} b4 {[%emt 0:02:08]} 33. Nd1 {[%emt 0:02:32]} e4 {[%emt 0:03:02]} 34. Nf2 {[%emt 0:00:47]} Ke5 {[%emt 0:00:18]} 35. Rc2 {[%emt 0:03:41]} Rb5 {[%emt 0:01:31]} 36. Rc4 {[%emt 0:01:18]} g4 {[%emt 0:05:21]} 37. fxg4 {[%emt 0:01:37]} f4 {[%emt 0:00:05]} 38. exf4+ {[%emt 0:00:29]} Kxf4 {[%emt 0:00:05]} 39. Kc2 {[%emt 0:00:43]} Ke3 {[%emt 0:00:46]} 40. Nd1+ {[%emt 0:00:00]} Kf4 {[%emt 0:00:00]} 41. Nf2 {[%emt 0:15:03]} Ke3 {[%emt 0:16:49]} 42. Nd1+ {[%emt 0:01:10]} Kf4 {[%emt 0:01:01]} 43. Nf2 {[%emt 0:00:51] e3} 1/2-1/2

[Event "46th GRE-chT Premier 2018"]
[Site "Rio Achaia"]
[Date "2018.07.12"]
[Round "4"]
[White "Drakoulakos, Grigorios"]
[Black "Skalkotas, Nikolaos"]
[Result "1-0"]
[ECO "C41"]
[WhiteElo "2276"]
[BlackElo "2044"]
[Annotator "NA"]
[PlyCount "71"]
[EventDate "2018.07.10"]
[EventType "team-tourn"]
[EventCountry "GRE"]
[SourceTitle "playchess.com"]
[Source "ChessBase"]
[SourceQuality "1"]
[TimeControl "40/5400+30:1800+30"]

1. e4 {[%emt 0:02:41]} e5 {[%emt 0:00:00]} 2. Nf3 {[%emt 0:00:46]} d6 {[%emt 0:00:03]} 3. d4 {[%emt 0:00:51]} Nf6 {[%emt 0:00:08]} 4. Nc3 {[%emt 0:00:27]} Nbd7 {[%emt 0:00:10]} 5. Bc4 {[%emt 0:01:53]} Be7 {[%emt 0:00:18]} 6. O-O {[%emt 0:00:57]} O-O {[%emt 0:00:43]} 7. Re1 {[%emt 0:01:01]} c6 {[%emt 0:00:28]} 8. a4 {[%emt 0:00:56]} b6 {[%emt 0:07:14]} 9. h3 {[%emt 0:24:48]} a6 {[%emt 0:10:36]} 10. Be3 {[%emt 0:00:19]} Bb7 {[%emt 0:08:48]} 11. Ba2 {[%emt 0:01:50]} b5 {[%emt 0:04:46]} 12. d5 {[%emt 0:12:10]} cxd5 {[%emt 0:08:11]} 13. Nxd5 {[%emt 0:01:39]} Nxe4 {[%emt 0:01:40]} 14. axb5 {[%emt 0:01:01]} axb5 {[%emt 0:00:43]} 15. Qd3 {[%emt 0:00:27]} Nef6 {[%emt 0:06:19]} 16. Qxb5 {[%emt 0:07:28]} Bxd5 {[%emt 0:00:13]} 17. Bxd5 {[%emt 0:00:07]} Rb8 {[%emt 0:01:31]} 18. Bb7 {[%emt 0:02:35]} d5 {[%emt 0:28:16]} 19. Ba7 {[%emt 0:03:12]} Qc7 {[%emt 0:02:44]} 20. Bxb8 {[%emt 0:01:00]} Rxb8 {[%emt 0:02:51]} 21. Ra8 {[%emt 0:00:08]} Rxa8 {[%emt 0:03:32]} 22. Bxa8 {[%emt 0:00:04]} Qxc2 {[%emt 0:01:33]} 23. Nxe5 {[%emt 0:14:21]} Nxe5 {[%emt 0:05:48]} 24. Qb8+ {[%emt 0:02:00]} Bf8 {[%emt 0:00:06]} 25. Qxe5 {[%emt 0:01:06]} h6 {[%emt 0:04:04]} 26. Qc3 {[%emt 0:06:08]} Qa4 {[%emt 0:01:17]} 27. Bc6 {[%emt 0:01:10]} Qa7 {[%emt 0:00:02]} 28. Qf3 {[%emt 0:04:33]} Qc5 {[%emt 0:01:06]} 29. Qc3 {[%emt 0:01:35]} Qa7 {[%emt 0:00:02]} 30. Qc2 {[%emt 0:00:37]} Bc5 {[%emt 0:01:10]} 31. Qf5 {[%emt 0:03:17]} Qb6 {[%emt 0:00:30]} 32. Bxd5 {[%emt 0:00:45]} Qxb2 {[%emt 0:00:26]} 33. Bxf7+ {[%emt 0:00:36]} Kxf7 {[%emt 0:00:02]} 34. Qxc5 {[%emt 0:00:01]} Qd2 {[%emt 0:01:04]} 35. Qe7+ {[%emt 0:01:09]} Kg6 {[%emt 0:00:18]} 36. Qe6 {[%emt 0:00:13]} 1-0

[Event "46th GRE-chT Premier 2018"]
[Site "Rio Achaia"]
[Date "2018.07.12"]
[Round "4"]
[White "Balokas, Dimitrios"]
[Black "Vafiadis, Kleanthis"]
[Result "1/2-1/2"]
[ECO "A16"]
[WhiteElo "2259"]
[BlackElo "2275"]
[Annotator "NA"]
[PlyCount "79"]
[EventDate "2018.07.10"]
[EventType "team-tourn"]
[EventCountry "GRE"]
[SourceTitle "playchess.com"]
[Source "ChessBase"]
[SourceQuality "1"]
[TimeControl "40/5400+30:1800+30"]

1. c4 {[%emt 0:00:00]} Nf6 {[%emt 0:00:45]} 2. Nc3 {[%emt 0:00:00]} d6 {[%emt 0:00:55]} 3. d4 {[%emt 0:00:27]} g6 {[%emt 0:00:15]} 4. e4 {[%emt 0:00:06]} Bg7 {[%emt 0:00:07]} 5. Bd3 {[%emt 0:00:05]} O-O {[%emt 0:00:26]} 6. Nge2 {[%emt 0:00:05]} Nc6 {[%emt 0:00:34]} 7. O-O {[%emt 0:00:13]} Bd7 {[%emt 0:00:34]} 8. f3 {[%emt 0:01:01]} e5 {[%emt 0:01:26]} 9. d5 {[%emt 0:00:27]} Nb4 {[%emt 0:00:07]} 10. Bb1 {[%emt 0:06:01]} a5 {[%emt 0:01:00]} 11. Be3 {[%emt 0:00:41]} b6 {[%emt 0:02:47]} 12. a3 {[%emt 0:02:50]} Na6 {[%emt 0:00:08]} 13. Bc2 {[%emt 0:00:08]} Ne8 {[%emt 0:13:45]} 14. Qd2 {[%emt 0:02:20]} f5 {[%emt 0:00:37]} 15. exf5 {[%emt 0:00:07]} gxf5 {[%emt 0:00:06]} 16. Bg5 {[%emt 0:15:24]} Bf6 {[%emt 0:02:47]} 17. Bh6 {[%emt 0:00:14]} Bg7 {[%emt 0:20:03]} 18. Bg5 {[%emt 0:09:21]} Nf6 {[%emt 0:13:08]} 19. Ng3 {[%emt 0:05:34]} f4 {[%emt 0:00:45]} 20. Nh5 {[%emt 0:10:44]} Qe8 {[%emt 0:00:24]} 21. Nxg7 {[%emt 0:00:34]} Kxg7 {[%emt 0:00:08]} 22. Qf2 {[%emt 0:03:19]} Qh5 {[%emt 0:05:27]} 23. Qh4 {[%emt 0:02:43]} Qxh4 {[%emt 0:00:04]} 24. Bxh4 {[%emt 0:00:09]} Ng8 {[%emt 0:00:30]} 25. Bf2 {[%emt 0:02:45]} Ne7 {[%emt 0:02:46]} 26. Rfb1 {[%emt 0:00:49]} Nc5 {[%emt 0:06:51]} 27. b4 {[%emt 0:00:27]} Nb7 {[%emt 0:00:05]} 28. h3 {[%emt 0:07:42]} Nf5 {[%emt 0:01:36]} 29. c5 {[%emt 0:05:22]} axb4 {[%emt 0:09:32]} 30. axb4 {[%emt 0:00:19]} dxc5 {[%emt 0:00:40]} 31. bxc5 {[%emt 0:00:15]} Nd4 {[%emt 0:09:53]} 32. Bxd4 {[%emt 0:02:24]} exd4 {[%emt 0:00:04]} 33. Rxa8 {[%emt 0:12:57]} Rxa8 {[%emt 0:00:04]} 34. Ne2 {[%emt 0:02:22]} Nxc5 {[%emt 0:01:49]} 35. Nxd4 {[%emt 0:00:08]} h6 {[%emt 0:00:49]} 36. d6 {[%emt 0:00:48]} cxd6 {[%emt 0:00:51]} 37. Rxb6 {[%emt 0:00:06]} Kf6 {[%emt 0:01:38]} 38. Nb3 {[%emt 0:02:57]} Nxb3 {[%emt 0:01:42]} 39. Bxb3 {[%emt 0:00:12]} Ke5 {[%emt 0:00:34]} 40. Rb7 {[%emt 0:00:00]} 1/2-1/2